Workbook

Sheet Bestillingsskema
B1: Bestillings skema til HOLD
B3: Hold:
B4: Navn på bestiller:
B5: Dato for Bestillingen:
B6: Sendes til kontakt@hvik.dk
A7: Produkt | B7: Beskrivelse | C7: Pris | D7: Junior størrelser | I7: Senior størrelser | O7: Antal | P7: Pris
A9: Hockey Camp Kit : Warrior Hockey T + Alpha Short + Core Skate socks + Gym Bag | D9: XSB | E9: SB | F9: MB | G9: LB | H9: XLB | I9: S | J9: M | K9: L | L9: XL | M9: XXL | N9: XXXL | O9: Antal | P9: Pris
B10: Senior sizes | C10: 350 | O10: =SUM(D10:N10) -> 0 | P10: =SUM(O10*C10) -> 0
B11: Junior Sizes | C11: =244*1.25 -> 305 | O11: =SUM(D11:N11) -> 0 | P11: =SUM(O11*C11) -> 0
A14: Hockey Camp Kit : Warrior Hockey T + Alpha Short + Gym Bag | D14: XSB | E14: SB | F14: MB | G14: LB | H14: XLB | I14: S | J14: M | K14: L | L14: XL | M14: XXL | N14: XXXL | O14: Antal | P14: Pris
B15: Senior sizes | C15: =244*1.25 -> 305 | O15: =SUM(D15:N15) -> 0 | P15: =SUM(O15*C15) -> 0
B16: Junior Sizes | C16: =216*1.25 -> 270 | O16: =SUM(D16:N16) -> 0 | P16: =SUM(O16*C16) -> 0
A19: Warrior Hockey Tee | D19: XSB | E19: SB | F19: MB | G19: LB | H19: XLB | I19: S | J19: M | K19: L | L19: XL | M19: XXL | N19: XXXL | O19: Antal | P19: Pris
B20: Senior sizes | C20: =92*1.25 -> 115 | O20: =SUM(D20:N20) -> 0 | P20: =SUM(O20*C20) -> 0
B21: Junior Sizes | C21: 95 | O21: =SUM(D21:N21) -> 0 | P21: =SUM(O21*C21) -> 0
A24: Warrior Alpha X Tech Tee | D24: XSB | E24: SB | F24: MB | G24: LB | H24: XLB | I24: S | J24: M | K24: L | L24: XL | M24: XXL | N24: XXXL | O24: Antal | P24: Pris
B25: Senior sizes | C25: =152*1.25 -> 190 | O25: =SUM(D25:N25) -> 0 | P25: =SUM(O25*C25) -> 0
B26: Junior Sizes | C26: 165 | O26: =SUM(D26:N26) -> 0 | P26: =SUM(O26*C26) -> 0
A29: Warrior Alpha X Cotton Feel Tee | D29: XSB | E29: SB | F29: MB | G29: LB | H29: XLB | I29: S | J29: M | K29: L | L29: XL | M29: XXL | N29: XXXL | O29: Antal | P29: Pris
B30: Senior sizes | C30: 165 | O30: =SUM(D30:N30) -> 0 | P30: =SUM(O30*C30) -> 0
B31: Junior Sizes | C31: 140 | O31: =SUM(D31:N31) -> 0 | P31: =SUM(O31*C31) -> 0
A34: Warrior Hockey Hoody | D34: XSB | E34: SB | F34: MB | G34: LB | H34: XLB | I34: S | J34: M | K34: L | L34: XL | M34: XXL | N34: XXXL | O34: Antal | P34: Pris
B35: Senior sizes | C35: 275 | O35: =SUM(D35:N35) -> 0 | P35: =SUM(O35*C35) -> 0
B36: Junior Sizes | C36: 250 | O36: =SUM(D36:N36) -> 0 | P36: =SUM(O36*C36) -> 0
A39: Warrior Ankle sock 3 pack | D39: OneSize | O39: Antal | P39: Pris
B40: Senior sizes | C40: =88*1.25 -> 110 | D40: Data | O40: =SUM(D40:N40) -> 0 | P40: =SUM(O40*C40) -> 0
A44: Game Jerseys : Warrior Game Jersey (CHL Style) | D44: XSB | E44: SB | F44: MB | G44: LB | H44: XLB | I44: S | J44: M | K44: L | L44: XL | M44: XXL | N44: XXXL | O44: Antal | P44: Pris
B45: All sizes | C45: 350 | O45: =SUM(D45:N45) -> 0 | P45: =SUM(O45*C45) -> 0
A49: Jogging Set : Aplha X Performance Hoodie + Alpha X Performance Pant (købes separt) | D49: XSB | E49: SB | F49: MB | G49: LB | H49: XLB | I49: S | J49: M | K49: L | L49: XL | M49: XXL | N49: XXXL | O49: Antal | P49: Pris
B50: X Performance Hoodie Senior Sizes | C50: =204*1.25 -> 255 | F50: 6 | O50: =SUM(D50:N50) -> 6 | P50: =SUM(O50*C50) -> 1530
B51: X Performance Hoodie Junior Sizes | C51: =184*1.25 -> 230 | G51: 7 | O51: =SUM(D51:N51) -> 7 | P51: =SUM(O51*C51) -> 1610
A54: Jogging Set : Aplha X Performance Hoodie + Alpha X Performance Pant (købes separt) | D54: XSB | E54: SB | F54: MB | G54: LB | H54: XLB | I54: S | J54: M | K54: L | L54: XL | M54: XXL | N54: XXXL | O54: Antal | P54: Pris
B55: X Performance Pant Senior sizes | C55: =204*1.25 -> 255 | O55: =SUM(D55:N55) -> 0 | P55: =SUM(O55*C55) -> 0
B56: X Performance Pant Junior sizes | C56: =184*1.25 -> 230 | O56: =SUM(D56:N56) -> 0 | P56: =SUM(O56*C56) -> 0
A59: Coach Set : Alpha X Presentation Jacket | D59: XSB | E59: SB | F59: MB | G59: LB | H59: XLB | I59: S | J59: M | K59: L | L59: XL | M59: XXL | N59: XXXL | O59: Antal | P59: Pris
B60: X Presentation Jacket Senior Sizes | C60: 300 | O60: =SUM(D60:N60) -> 0 | P60: =SUM(O60*C60) -> 0
A64: Coach Set : Alpha X Presentation Pant (købes separat) | D64: XSB | E64: SB | F64: MB | G64: LB | H64: XLB | I64: S | J64: M | K64: L | L64: XL | M64: XXL | N64: XXXL | O64: Antal | P64: Pris
B65: X Presentation Pant Senior Sizes | C65: 240 | O65: =SUM(D65:N65) -> 0 | P65: =SUM(O65*C65) -> 0
A69: Coach Polo : Alpha X Base Polo | D69: XSB | E69: SB | F69: MB | G69: LB | H69: XLB | I69: S | J69: M | K69: L | L69: XL | M69: XXL | N69: XXXL | O69: Antal | P69: Pris
B70: X Base Polo senior Sizes | C70: 170 | O70: =SUM(D70:N70) -> 0 | P70: =SUM(O70*C70) -> 0
A74: Team Winter Jacket : Covert Stadium Jacket | D74: XSB | E74: SB | F74: MB | G74: LB | H74: XLB | I74: S | J74: M | K74: L | L74: XL | M74: XXL | N74: XXXL | O74: Antal | P74: Pris
B75: Covert Stadium Jacket Senior Sizes | C75: 587 | O75: =SUM(D75:N75) -> 0 | P75: =SUM(O75*C75) -> 0
B76: Covert Stadium Jacket Junior Sizes | C76: 494 | O76: =SUM(D76:N76) -> 0 | P76: =SUM(O76*C76) -> 0
A79: Team Winter Suit : Alpha Winter Suit Jacket | D79: XSB | E79: SB | F79: MB | G79: LB | H79: XLB | I79: S | J79: M | K79: L | L79: XL | M79: XXL | N79: XXXL | O79: Antal | P79: Pris
B80: Winter Suit Jacket Senior Sizes | C80: 432 | O80: =SUM(D80:N80) -> 0 | P80: =SUM(O80*C80) -> 0
B81: Winter Suit Jacket Junior Sizes | C81: 382 | O81: =SUM(D81:N81) -> 0 | P81: =SUM(O81*C81) -> 0
A84: Team Winter Suit : Alpha Winter Suit Pant (købes separat) | D84: XSB | E84: SB | F84: MB | G84: LB | H84: XLB | I84: S | J84: M | K84: L | L84: XL | M84: XXL | N84: XXXL | O84: Antal | P84: Pris
B85: Winter Suit Pant Senior sizes | C85: =260*1.25 -> 325 | O85: =SUM(D85:N85) -> 0 | P85: =SUM(O85*C85) -> 0
B86: Winter Suit Pant Junior sizes | C86: 270 | O86: =SUM(D86:N86) -> 0 | P86: =SUM(O86*C86) -> 0
A89: Team Pro Hockey Bag | D89: OneSize | O89: Antal | P89: Pris
B90: Size Senior | C90: 460 | O90: =SUM(D91:N91) -> 0 | P90: =SUM(O90*C91) -> 0
A94: Team Q20 Cargo Roll Bag | D94: OneSize | O94: Antal | P94: Pris
B95: Size Medium (Jr.) | C95: 595 | O95: =SUM(D96:N96) -> 0 | P95: =SUM(O95*C96) -> 0
A99: QRE 20 Pro - LX20 | D99: OneSize | O99: Antal | P99: Pris
B100: Senior Flex | C100: =855*1.25 -> 1068.75 | O100: =SUM(D100:N100) -> 0 | P100: =SUM(O100*C100) -> 0
A103: HvIK Warrior Handsker | D103: !!" | E103: 12" | F103: 13" | G103: !4" | H103: !%" | O103: Antal | P103: Pris
B104: Senior Flex | C104: 999 | O104: =SUM(D104:N104) -> 0 | P104: =SUM(O104*C104) -> 0
A109: I alt | O109: =SUM(O100+O95+O90+O86+O85+O81+O80+O76+O75+O70+O65+O60+O56+O55+O51+O50+O45+O40+O36+O35+O31+O30+O26+O25+O21+O20+O16+O15+O11+O10) -> 13 | P109: =SUM(P100+P95+P90+P86+P85+P81+P80+P76+P75+P70+P65+P60+P56+P55+P51+P50+P45+P40+P36+P35+P31+P30+P26+P25+P21+P20+P16+P15+P11+P10) -> 3140

Sheet Trykkerier
A1: Klubbens trykkeri | B1: Web
A2: PNT Tryk & Broderi ApS | B2: http://pnttryk.dk/
A3: Floorballcenteret | B3: https://www.floorballcentret.dk/

Sheet data (hidden)
A2: 1
A3: 2
A4: 3
A5: 4
A6: 5
A7: 6
A8: 7
A9: 8
A10: 9
A11: 10
A12: 11
A13: 12
A14: 13
A15: 14
A16: 15
A17: 16
A18: 17
A19: 18
A20: 19
A21: 20
A22: 21
A23: 22
A24: 23
A25: 24
A26: 25
